bitfinex-derivatives/quotes_BTCF0:USTF0_20251215
["timestamp","ask_amount","ask_price","bid_price","bid_amount"]
[1765772737912,0.02536473,89357.0,89356.0,0.1282114]
[1765772738112,0.08254473,89357.0,89356.0,0.1282114]
[1765772738719,0.08354473,89357.0,89356.0,0.1282114]
[1765772739528,0.02636473,89357.0,89356.0,0.4900114]
[1765772740119,0.14338473,89357.0,89356.0,0.001]
[1765772740309,0.14338473,89357.0,89356.0,0.05762]
[1765772740512,0.14338473,89357.0,89356.0,0.11769]
[1765772740915,0.14238473,89357.0,89356.0,0.11769]
[1765772741107,0.14338473,89357.0,89356.0,0.05762]
[1765772741715,0.14238473,89357.0,89356.0,0.05762]
[1765772741922,0.14438473,89357.0,89356.0,0.05762]
[1765772742125,0.15145,89346.0,89345.0,0.47636]
[1765772742424,0.17681473,89346.0,89345.0,0.47636]
[1765772743917,0.11697473,89346.0,89345.0,0.47836]
[1765772744122,0.05979473,89346.0,89345.0,0.47836]
[1765772745125,0.17681473,89346.0,89345.0,0.47836]
[1765772747031,0.02536473,89346.0,89345.0,0.47836]
[1765772747324,0.11702,89351.0,89350.0,0.11278]
[1765772747522,0.14263418,89351.0,89350.0,0.11278]
[1765772748122,0.14263418,89351.0,89350.0,0.05662]
[1765772748618,0.14363418,89351.0,89350.0,0.001]
[1765772749717,0.21525396,89351.0,89350.0,0.001]
[1765772751722,0.20406196,89351.0,89350.0,0.10936]
[1765772752721,0.14363418,89351.0,89350.0,0.10936]
[1765772752918,0.14363418,89351.0,89350.0,0.05547]
[1765772753618,0.14363418,89351.0,89350.0,0.10878]
[1765772755130,0.14363418,89351.0,89350.0,0.001]
[1765772755735,0.14363418,89351.0,89350.0,0.05259]
[1765772755934,0.14363418,89351.0,89350.0,0.10418]
[1765772756331,0.14363418,89351.0,89350.0,0.001]
[1765772760333,0.14363418,89351.0,89350.0,0.0996]
[1765772760539,0.14363418,89351.0,89350.0,0.05086]
[1765772763633,0.14363418,89351.0,89350.0,0.001]
[1765772763832,0.14363418,89351.0,89350.0,0.04806]
[1765772764733,0.20406196,89351.0,89350.0,0.04806]
[1765772765243,0.14363418,89351.0,89350.0,0.04806]
[1765772767252,0.20406196,89351.0,89350.0,0.04806]
[1765772767452,0.20406196,89351.0,89350.0,0.04586]
[1765772768049,0.20406196,89351.0,89336.0,0.1009139]
[1765772768050,0.10977,89337.0,89336.0,0.1009139]
[1765772768350,0.13538418,89337.0,89336.0,0.1009139]
[1765772768653,0.08014418,89337.0,89336.0,0.1009139]
[1765772769253,0.13538418,89337.0,89336.0,0.1049139]
[1765772769757,0.13538418,89337.0,89336.0,0.1069139]
[1765772770854,0.13538418,89337.0,89336.0,0.0620539]
[1765772771059,0.13538418,89337.0,89336.0,0.006]
[1765772771262,0.13538418,89337.0,89336.0,0.09226]
[1765772771962,0.13538418,89337.0,89336.0,0.09026]
[1765772772659,0.13538418,89337.0,89336.0,0.08926]
[1765772772959,0.13538418,89337.0,89336.0,0.004]
[1765772773345,0.13538418,89337.0,89336.0,0.08812]
[1765772774348,0.13538418,89337.0,89336.0,0.08412]
[1765772774661,0.13538418,89337.0,89336.0,0.08612]
[1765772777764,0.02561418,89337.0,89336.0,0.08612]
[1765772778062,0.13538418,89337.0,89336.0,0.08612]
[1765772781159,0.08014418,89337.0,89336.0,0.08612]
[1765772781666,0.13538418,89337.0,89336.0,0.08612]
[1765772789380,0.13538418,89337.0,89336.0,0.002]
[1765772791279,0.13538418,89337.0,89336.0,0.0018196]
[1765772791468,0.19581196,89337.0,89336.0,0.0018196]
[1765772792171,0.12503,89325.0,89324.0,0.0436153]
[1765772792369,0.15064418,89325.0,89324.0,0.0755653]
[1765772793873,0.15164418,89325.0,89324.0,0.0755653]
[1765772795076,0.05590418,89325.0,89324.0,0.0755653]
[1765772795276,0.02661418,89325.0,89324.0,0.0755653]
[1765772796182,0.05490418,89325.0,89324.0,0.0755653]
[1765772796385,0.05590418,89325.0,89324.0,0.0755653]
[1765772797083,0.05490418,89325.0,89324.0,0.0765653]
[1765772798582,0.05490418,89325.0,89324.0,0.4373653]
[1765772799479,0.15064418,89325.0,89324.0,0.4373653]
[1765772800895,0.15064418,89325.0,89324.0,0.4363653]
[1765772802781,0.15164418,89325.0,89324.0,0.4363653]
[1765772803687,0.15064418,89325.0,89324.0,0.4363653]
[1765772803879,0.15064418,89325.0,89324.0,0.42517]
[1765772810991,0.05490418,89325.0,89324.0,0.42517]
[1765772811192,0.02561418,89325.0,89324.0,0.42517]
[1765772812191,0.02561418,89325.0,89324.0,0.42617]
[1765772813279,0.02561418,89325.0,89324.0,0.42717]
[1765772814085,0.02929,89335.0,89334.0,0.0554541]
[1765772814282,0.05471826,89335.0,89334.0,0.4162541]
[1765772814592,0.10369826,89335.0,89334.0,0.4162541]
[1765772814790,0.15045826,89335.0,89334.0,0.4162541]
[1765772815690,0.05471826,89335.0,89334.0,0.4162541]
[1765772815889,0.10469826,89335.0,89334.0,0.4162541]
[1765772816285,0.10369826,89335.0,89334.0,0.4162541]
[1765772816483,0.05471826,89335.0,89334.0,0.4162541]
[1765772816891,0.10369826,89335.0,89334.0,0.4162541]
[1765772817091,0.14998826,89335.0,89334.0,0.4162541]
[1765772819893,0.15098826,89335.0,89334.0,0.4162541]
[1765772820892,0.15098826,89335.0,89334.0,0.40506]
[1765772821091,0.08933,89327.0,89326.0,0.048545]
[1765772821395,0.11475826,89327.0,89326.0,0.03735]
[1765772822890,0.11575826,89327.0,89326.0,0.03735]
[1765772823289,0.11605,89325.0,89324.0,0.39724]
[1765772823498,0.14147826,89325.0,89324.0,0.39724]
[1765772825298,0.14247826,89325.0,89324.0,0.3797]
[1765772825895,0.14347826,89325.0,89324.0,0.39635]
[1765772826893,0.14347826,89325.0,89324.0,0.03555]
[1765772830799,0.14247826,89325.0,89324.0,0.03555]
[1765772833801,0.14347826,89325.0,89324.0,0.03555]
[1765772833998,0.14347826,89325.0,89324.0,0.0189]
[1765772834197,0.14247826,89325.0,89324.0,0.0189]
[1765772834398,0.08933,89321.0,89320.0,0.38618]
[1765772834590,0.11475826,89321.0,89320.0,0.38618]
[1765772835505,0.11675826,89321.0,89320.0,0.38618]
[1765772837100,0.02742826,89321.0,89320.0,0.38618]
[1765772837506,0.02642826,89321.0,89320.0,0.38618]
[1765772837897,0.02688834,89329.0,89328.0,0.0228]
[1765772838098,0.11605,89330.0,89329.0,0.0228]
[1765772838293,0.14293834,89330.0,89329.0,0.0228]
[1765772839517,0.14393834,89330.0,89329.0,0.0228]
[1765772843194,0.11705,89330.0,89329.0,0.0228]
[1765772843400,0.14393432,89330.0,89329.0,0.0228]
[1765772847499,0.09764432,89330.0,89329.0,0.0228]
[1765772847707,0.13897432,89330.0,89329.0,0.0228]
[1765772859214,0.11209,89330.0,89329.0,0.0228]
[1765772859414,0.13897876,89330.0,89329.0,0.0228]
[1765772861611,0.07736,89329.0,89328.0,0.3719949]
[1765772861816,0.10424876,89329.0,89328.0,0.3719949]
[1765772862014,0.10424876,89329.0,89328.0,0.3735349]
[1765772862216,0.10424876,89329.0,89328.0,0.3750749]
[1765772863324,0.10524876,89329.0,89328.0,0.3750749]
[1765772864021,0.10424876,89329.0,89328.0,0.3750749]
[1765772865809,0.10524876,89329.0,89328.0,0.3750749]
[1765772866421,0.10424876,89329.0,89328.0,0.3750749]
[1765772867721,0.10524876,89329.0,89328.0,0.3750749]
[1765772869122,0.10424876,89329.0,89328.0,0.3750749]
[1765772869424,0.10524876,89329.0,89328.0,0.3750749]
[1765772869910,0.10424876,89329.0,89328.0,0.3750749]
[1765772870827,0.10524876,89329.0,89328.0,0.3750749]
[1765772872322,0.10424876,89329.0,89328.0,0.3750749]
[1765772876434,0.10424876,89329.0,89328.0,0.3760749]
[1765772877028,0.10424876,89329.0,89328.0,0.3750749]
[1765772879833,0.10424876,89329.0,89328.0,0.3760749]
[1765772880732,0.02688876,89329.0,89328.0,0.3760749]
[1765772881132,0.08239778,89343.0,89336.0,0.0111939]
[1765772881431,0.02197,89343.0,89339.0,0.3608]
[1765772881931,0.02197,89343.0,89340.0,0.0111934]
[1765772882135,0.00016782,89345.0,89339.0,0.3608]
[1765772882327,0.02197,89344.0,89340.0,0.0111934]
[1765772883636,0.02197,89344.0,89340.0,0.0141934]
[1765772885638,0.02197,89344.0,89343.0,0.011193]
[1765772888333,0.00016782,89345.0,89343.0,1.512193]
[1765772888732,0.00016782,89345.0,89343.0,1.513193]
[1765772889134,0.02197,89352.0,89351.0,0.011192]
[1765772889341,0.02197,89352.0,89351.0,1.071432]
[1765772891229,0.02197,89352.0,89351.0,1.072432]
[1765772891739,0.02197,89356.0,89355.0,0.0111915]
[1765772892945,0.02197,89356.0,89355.0,0.0131915]
[1765772893334,0.02213793,89360.0,89359.0,0.011191]
[1765772894946,0.02213793,89360.0,89359.0,0.012191]
[1765772895536,0.00016793,89360.0,89359.0,0.015191]
[1765772896143,0.00016793,89360.0,89359.0,0.013191]
[1765772896445,0.00016793,89360.0,89359.0,0.015191]
[1765772898238,0.02213793,89360.0,89359.0,0.015191]
[1765772898549,0.09187793,89360.0,89359.0,0.015191]
[1765772898746,0.09187793,89360.0,89359.0,0.714511]
[1765772898949,0.11766584,89360.0,89359.0,0.714511]
[1765772899352,0.11766584,89360.0,89359.0,0.712511]
[1765772899546,0.11766584,89360.0,89359.0,0.714511]
[1765772900352,0.11766584,89360.0,89359.0,0.015191]
[1765772900743,0.11766584,89360.0,89359.0,0.002]
[1765772900943,0.06974,89356.0,89355.0,0.3608]
[1765772901145,0.09552791,89356.0,89355.0,0.3608]
[1765772902249,0.09652791,89356.0,89355.0,0.3608]
[1765772902454,0.09752791,89356.0,89355.0,0.3608]
[1765772909658,0.09852791,89356.0,89355.0,0.3608]
[1765772911056,0.09652791,89356.0,89355.0,0.3608]
[1765772911360,0.09752791,89356.0,89355.0,0.3608]
[1765772911559,0.09652791,89356.0,89355.0,0.3608]
[1765772911760,0.09752791,89356.0,89355.0,0.3608]
[1765772912262,0.09652791,89356.0,89355.0,0.3608]
[1765772912463,0.09759519,89356.0,89355.0,0.3608]
[1765772914760,0.09659519,89356.0,89355.0,0.3608]
[1765772914962,0.09559519,89356.0,89355.0,0.3608]
[1765772917263,0.11603519,89356.0,89355.0,0.3608]
[1765772918263,0.04629519,89356.0,89355.0,0.3608]
[1765772919461,0.08125519,89356.0,89355.0,0.3608]
[1765772919660,0.11431519,89356.0,89355.0,0.3608]
[1765772920264,0.11431519,89356.0,89355.0,0.3618]
[1765772920662,0.11431519,89356.0,89355.0,0.3628]
[1765772920863,0.11431519,89356.0,89355.0,0.3618]
[1765772921066,0.11431519,89356.0,89355.0,0.3608]
[1765772923766,0.08125519,89356.0,89355.0,0.3608]
[1765772923960,0.11431519,89356.0,89355.0,0.3608]
[1765772927061,0.08125519,89356.0,89355.0,0.3608]
[1765772927775,0.04629519,89356.0,89355.0,0.3608]
[1765772928482,0.00010871,89356.0,89355.0,0.3608]
[1765772928687,0.00010871,89356.0,89355.0,0.3618]
[1765772929884,0.00010871,89356.0,89355.0,0.3628]
[1765772930086,0.00010871,89356.0,89355.0,0.3638]
[1765772930585,0.00010871,89356.0,89355.0,0.3628]
[1765772933192,0.06812871,89356.0,89355.0,0.3618]
[1765772933383,0.06812871,89356.0,89355.0,0.3628]
[1765772934595,0.06812871,89356.0,89355.0,0.3618]
[1765772934888,0.03316871,89356.0,89355.0,0.3618]
[1765772935098,0.03506871,89356.0,89355.0,0.3618]
[1765772935398,0.06812871,89356.0,89355.0,0.3618]
[1765772935599,0.06812871,89356.0,89355.0,0.3608]
[1765772935995,0.06812871,89356.0,89355.0,1.06004]
[1765772936684,0.06812871,89356.0,89355.0,1.06104]
[1765772937300,0.06912871,89356.0,89355.0,1.06004]
[1765772937501,0.07012871,89356.0,89355.0,1.06004]
[1765772938000,0.06912871,89356.0,89355.0,1.06004]
[1765772939002,0.06812871,89356.0,89355.0,1.06004]
[1765772941792,0.06802,89356.0,89355.0,1.06004]
[1765772941993,0.09330633,89356.0,89355.0,1.06004]
[1765772942298,0.11271633,89356.0,89355.0,1.06004]
[1765772942707,0.11371633,89356.0,89355.0,1.06004]
[1765772943200,0.11271633,89356.0,89355.0,1.06004]
[1765772944516,0.11271633,89356.0,89355.0,0.3608]
[1765772944806,0.11271633,89356.0,89355.0,1.06004]
[1765772946701,0.11471633,89356.0,89355.0,1.06004]
[1765772948499,0.11371633,89356.0,89355.0,0.3608]
[1765772948697,0.11371633,89356.0,89355.0,1.06004]
[1765772949602,0.11271633,89356.0,89355.0,1.06004]
[1765772955206,0.04469633,89356.0,89355.0,1.06004]
[1765772956107,0.02528633,89356.0,89355.0,1.06004]
[1765772956312,0.02213793,89360.0,89356.0,0.0111914]
[1765772956501,0.02213793,89360.0,89359.0,0.3608]
[1765772956900,0.04708174,89360.0,89359.0,0.3608]
[1765772957908,0.02511174,89360.0,89359.0,0.3608]
[1765772958103,0.02197,89368.0,89367.0,0.01119]
[1765772958311,0.02097669,89368.0,89367.0,1.07123]
[1765772960018,0.02097669,89368.0,89367.0,0.37199]
[1765772960322,0.02097669,89368.0,89367.0,1.07119]
[1765772961514,0.01820452,89368.0,89367.0,1.07119]
[1765772965014,0.05111452,89368.0,89367.0,1.07119]
[1765772965922,0.08327452,89368.0,89367.0,1.07119]
[1765772966520,0.08327452,89368.0,89367.0,0.37199]
[1765772966723,0.08327452,89368.0,89367.0,1.07119]
[1765772968528,0.05111452,89368.0,89367.0,1.07119]
[1765772968826,0.01820452,89368.0,89367.0,1.07119]
[1765772969417,0.04933452,89368.0,89367.0,1.07119]
[1765772969726,0.08136452,89368.0,89367.0,1.07119]
[1765772970127,0.10615183,89368.0,89367.0,1.07119]
[1765772971129,0.10615183,89368.0,89367.0,1.07115]
[1765772973735,0.04299183,89368.0,89367.0,1.07115]
[1765772974130,0.01820452,89368.0,89367.0,1.07115]
[1765772974331,0.00016793,89376.0,89375.0,0.011189]
[1765772974531,0.00016793,89376.0,89375.0,0.371989]
[1765772975330,0.01907,89388.0,89384.0,0.0111879]
[1765772975531,0.01907,89388.0,89387.0,0.3608]
[1765772975731,0.04384602,89388.0,89387.0,0.3608]
[1765772976236,0.01907,89388.0,89387.0,0.3608]
[1765772976540,0.02207,89388.0,89387.0,0.3608]
[1765772976739,0.05158,89388.0,89387.0,0.3608]
[1765772976930,0.08385,89388.0,89387.0,0.3608]
[1765772977642,0.02507,89388.0,89387.0,0.3608]
[1765772977839,0.05458,89388.0,89387.0,0.3608]
[1765772978237,0.02507,89388.0,89387.0,0.3608]
[1765772978743,0.08685,89388.0,89387.0,0.3608]
[1765772980852,0.08685,89388.0,89387.0,1.06004]
[1765772988150,0.11131958,89388.0,89387.0,1.06004]
[1765772989456,0.11131958,89388.0,89387.0,0.3608]
[1765772989660,0.11131958,89388.0,89387.0,1.05996]
[1765772994961,0.11132665,89388.0,89387.0,1.05996]
[1765772996662,0.04954665,89388.0,89387.0,1.05996]
[1765772997570,0.07936665,89388.0,89387.0,1.05996]
[1765772998283,0.10994665,89388.0,89387.0,1.05996]
[1765773000370,0.10994665,89388.0,89387.0,0.3608]
[1765773000772,0.01763,89373.0,89370.0,0.0271]
[1765773000974,0.04745,89373.0,89372.0,0.0653894]
[1765773001180,0.40825,89379.0,89378.0,0.0542]
[1765773001367,0.39662,89388.0,89387.0,0.0542]
[1765773001567,0.39130105,89388.0,89387.0,0.0542]
[1765773001974,0.46933105,89388.0,89387.0,0.0542]
[1765773002374,0.45170105,89388.0,89387.0,0.0542]
[1765773002576,0.44870105,89388.0,89387.0,0.0542]
[1765773002775,0.44183,89388.0,89387.0,0.0542]
[1765773002968,0.0604,89379.0,89378.0,0.19050667]
[1765773003171,0.0604,89379.0,89378.0,0.62365]
[1765773003373,0.08491996,89379.0,89378.0,0.62365]
[1765773003775,0.44571996,89379.0,89378.0,0.05829]
[1765773004469,0.44771996,89379.0,89378.0,0.05829]
[1765773006073,0.44971996,89379.0,89378.0,0.05829]
[1765773006579,0.44771996,89379.0,89378.0,0.05829]
[1765773006768,0.44971996,89379.0,89378.0,0.05829]
[1765773009785,0.44971996,89379.0,89373.0,0.0111892]
[1765773009786,0.0604,89374.0,89373.0,0.0694792]
[1765773009982,0.07803,89368.0,89367.0,0.05845783]
[1765773010187,0.10254996,89368.0,89367.0,0.05845783]
[1765773013885,0.10354996,89368.0,89367.0,0.05845783]
[1765773014480,0.10454996,89368.0,89367.0,0.05845783]
[1765773015373,0.10354996,89368.0,89367.0,0.05845783]
[1765773015586,0.10254996,89368.0,89367.0,0.05845783]
[1765773018686,0.10354996,89368.0,89367.0,0.05845783]
[1765773018888,0.10354996,89368.0,89367.0,0.02899783]
[1765773019590,0.10454996,89368.0,89367.0,0.02899783]
[1765773019888,0.10454996,89368.0,89367.0,0.00016783]
[1765773020090,0.07803,89356.0,89355.0,0.05829]
[1765773020680,0.07803,89356.0,89355.0,0.06991836]
[1765773020897,0.0604,89356.0,89355.0,0.06991836]
[1765773021278,0.02982,89356.0,89355.0,0.06991836]
[1765773021574,0.0604,89356.0,89355.0,0.06991836]
[1765773021772,0.0614,89356.0,89355.0,0.06991836]
[1765773022589,0.0604,89356.0,89355.0,0.06991836]
[1765773024288,0.07803,89356.0,89355.0,0.06991836]
[1765773028092,0.07903,89356.0,89355.0,0.06991836]
[1765773028400,0.07803,89356.0,89355.0,0.05829]
[1765773028584,0.08003,89356.0,89355.0,0.05829]
[1765773028892,0.08003,89356.0,89355.0,0.0697547]
[1765773029489,0.08103,89356.0,89355.0,0.05829]
[1765773030292,0.08103,89356.0,89355.0,0.06982348]
[1765773030693,0.08003,89356.0,89355.0,0.06982348]
[1765773032293,0.08003,89356.0,89355.0,0.05829]
[1765773032501,0.07903,89356.0,89355.0,0.05829]
[1765773032699,0.08003,89356.0,89355.0,0.06962746]
[1765773034803,0.07803,89356.0,89355.0,0.06962746]
[1765773035100,0.08003,89356.0,89355.0,0.06962746]
[1765773035707,0.07903,89356.0,89355.0,0.06962746]
[1765773036007,0.08003,89356.0,89355.0,0.06962746]
[1765773037097,0.002,89356.0,89355.0,0.06962746]
[1765773037407,0.38819783,89376.0,89375.0,0.113599]
[1765773037408,0.00016783,89376.0,89375.0,0.113599]
[1765773038107,0.11847,89395.0,89394.0,0.0988766]
[1765773038299,0.1432527,89395.0,89394.0,0.0988766]
[1765773038495,0.1432527,89395.0,89394.0,0.08769]
[1765773039504,0.1532527,89395.0,89394.0,0.08869]
[1765773040406,0.1632527,89395.0,89394.0,0.08969]
[1765773042999,0.02,89395.0,89394.0,0.08969]
[1765773045605,0.0652,89395.0,89394.0,0.08969]
[1765773046308,0.11124,89395.0,89394.0,0.08969]
[1765773050410,0.02,89395.0,89394.0,0.08969]
[1765773050916,0.0652,89395.0,89394.0,0.08969]
[1765773052610,0.11124,89395.0,89394.0,0.08969]
[1765773057315,0.02,89395.0,89394.0,0.08969]
[1765773058913,0.09796,89395.0,89394.0,0.08969]
[1765773060711,0.09796,89395.0,89394.0,0.70112]
[1765773060908,0.09796,89395.0,89394.0,0.08182]
[1765773061613,0.02,89395.0,89394.0,0.08182]
[1765773062222,0.12142,89395.0,89394.0,0.78098]
[1765773063211,0.05911,89395.0,89394.0,0.78098]
[1765773064226,0.09796,89395.0,89394.0,0.78098]
[1765773064416,0.09796,89395.0,89394.0,0.08182]
[1765773064614,0.09796,89395.0,89394.0,0.78098]
[1765773067327,0.12290722,89395.0,89394.0,0.78098]
[1765773067716,0.04494722,89395.0,89394.0,0.78098]
[1765773068122,0.08405722,89395.0,89394.0,0.78098]
[1765773069024,0.08405722,89395.0,89394.0,0.08182]
[1765773069226,0.08405722,89395.0,89394.0,0.7809]
[1765773069925,0.05911,89395.0,89394.0,0.7809]
[1765773070629,0.05903167,89395.0,89394.0,0.7809]
[1765773071023,0.01992167,89395.0,89394.0,0.7809]
[1765773071617,0.09788167,89395.0,89394.0,0.7809]
[1765773072129,0.01992167,89395.0,89394.0,0.7809]
[1765773072320,0.05903167,89395.0,89394.0,0.7809]
[1765773073526,0.01992167,89395.0,89394.0,0.7809]
[1765773074124,0.05903167,89395.0,89394.0,0.7809]
[1765773074325,0.09788167,89395.0,89394.0,0.7809]
[1765773074527,0.09788167,89395.0,89394.0,0.78082]
[1765773076326,0.01992167,89395.0,89394.0,0.78082]
[1765773076735,0.05903167,89395.0,89394.0,0.78082]
[1765773077942,0.01992167,89395.0,89394.0,0.78082]
[1765773080335,0.00016783,89403.0,89402.0,0.0910056]
[1765773080736,0.03911,89420.0,89419.0,0.0910035]
[1765773081040,0.10287654,89420.0,89419.0,0.7900035]
[1765773081541,0.10287654,89420.0,89419.0,0.80147201]
[1765773082641,0.02491654,89420.0,89419.0,0.80147201]
[1765773082839,0.02491654,89420.0,89419.0,0.80347201]
[1765773083139,0.09718695,89428.0,89427.0,0.0910025]
[1765773083342,0.00016783,89428.0,89427.0,0.0910025]
[1765773083524,0.43876,89440.0,89439.0,0.091001]
[1765773083731,0.43876,89440.0,89439.0,0.509281]
[1765773083929,0.46222,89440.0,89439.0,2.009281]
[1765773084943,0.3688,89440.0,89439.0,2.009281]
[1765773085136,0.008,89440.0,89439.0,2.009281]
[1765773085839,0.07796,89458.0,89457.0,0.07982]
[1765773086034,0.07796,89458.0,89457.0,0.77886]
[1765773086345,0.07796,89458.0,89457.0,0.7900387]
[1765773087437,0.1032,89465.0,89464.0,0.0931379]
[1765773087741,0.07974,89465.0,89464.0,0.0931379]
[1765773087933,0.04011,89465.0,89464.0,0.0931379]
[1765773088134,0.10392,89465.0,89464.0,0.0931379]
[1765773088735,0.11292,89465.0,89464.0,0.0931379]
[1765773089340,0.08874,89465.0,89464.0,0.0931379]
[1765773089545,0.04911,89465.0,89464.0,0.0931379]
[1765773089841,0.0496,89465.0,89464.0,0.0931379]
[1765773090046,0.09149,89465.0,89464.0,0.0931379]
[1765773090446,0.009,89465.0,89464.0,0.0931379]
[1765773091136,0.00011048,89466.0,89465.0,0.07801]
[1765773091544,0.10560048,89466.0,89465.0,0.07801]
[1765773092341,0.11360048,89466.0,89465.0,0.07801]
[1765773093843,0.00811048,89466.0,89465.0,0.77697]
[1765773094238,0.00711048,89466.0,89465.0,0.77697]
[1765773094442,0.04189,89480.0,89479.0,0.03809]
[1765773094745,0.04189,89480.0,89479.0,0.788106]
[1765773094947,0.08249,89480.0,89479.0,0.788106]
[1765773095337,0.08249,89480.0,89479.0,0.79949734]
[1765773095643,0.13338,89480.0,89479.0,0.79949734]
[1765773096437,0.05089,89480.0,89479.0,0.79949734]
[1765773097246,0.009,89480.0,89479.0,0.79949734]
[1765773097450,0.10549,89490.0,89489.0,0.0891847]
[1765773097844,0.08249,89485.0,89484.0,0.0510953]
[1765773098149,0.08249,89485.0,89484.0,0.0891853]
[1765773098545,0.08249,89485.0,89484.0,0.0510953]
[1765773098750,0.08249,89485.0,89484.0,0.0891853]
[1765773100654,0.08849,89485.0,89484.0,0.0891853]
[1765773103051,0.10549,89484.0,89483.0,0.77689]
[1765773104455,0.11149,89484.0,89483.0,0.77689]
[1765773107456,0.11149,89484.0,89480.0,0.0111758]
[1765773107457,0.08249,89481.0,89480.0,0.03992]
[1765773107760,0.10549,89478.0,89477.0,0.80716]
[1765773108156,0.10549,89478.0,89477.0,0.85866934]
[1765773108357,0.12967875,89478.0,89477.0,0.85866934]
[1765773108946,0.12967875,89478.0,89477.0,0.43881]
[1765773109156,0.12967875,89478.0,89477.0,0.45039367]
[1765773109747,0.10667875,89478.0,89477.0,0.08959367]
[1765773109951,0.08249,89478.0,89477.0,0.08959367]
[1765773110155,0.10549,89478.0,89477.0,0.08959367]
[1765773110462,0.08249,89478.0,89477.0,0.08959367]
[1765773110851,0.006,89481.0,89480.0,0.07801]
[1765773111051,0.44329,89487.0,89486.0,0.0891851]
[1765773111252,0.46752589,89487.0,89486.0,0.0891851]
[1765773112456,0.10672589,89487.0,89486.0,0.0891851]
[1765773114251,0.11372589,89487.0,89486.0,0.0891851]
[1765773125158,0.11372589,89487.0,89486.0,0.0510951]
[1765773125359,0.11372589,89487.0,89486.0,0.0111751]
[1765773126261,0.11372589,89487.0,89486.0,0.0502351]
[1765773129971,0.07694,89473.0,89472.0,0.3608]
[1765773130167,0.07694,89472.0,89471.0,0.01134464]
[1765773130371,0.10117589,89472.0,89471.0,0.01134464]
[1765773130968,0.10117589,89472.0,89471.0,0.05040464]
[1765773131269,0.10117589,89472.0,89471.0,0.01134464]
[1765773131567,0.46197589,89472.0,89471.0,0.00316764]
[1765773131962,0.07694,89467.0,89466.0,0.0111775]
[1765773132164,0.10117589,89467.0,89466.0,0.0881175]
[1765773132374,0.10117589,89467.0,89466.0,0.09962075]
[1765773132375,0.02423589,89467.0,89466.0,0.09962075]
[1765773132560,0.38346,89480.0,89479.0,0.07694]
[1765773132561,0.0996,89480.0,89479.0,0.07694]
[1765773132762,0.1231522,89480.0,89479.0,0.088116]
[1765773132976,0.4839522,89480.0,89479.0,0.088116]
[1765773133768,0.1004922,89480.0,89479.0,0.088116]
[1765773134073,0.1064922,89480.0,89479.0,0.088116]
[1765773136779,0.0295522,89480.0,89479.0,0.088116]
[1765773136972,0.006,89480.0,89479.0,0.50845447]
[1765773137369,0.006,89480.0,89479.0,0.448916]
[1765773138881,0.006,89480.0,89479.0,0.50906689]
[1765773139173,0.08294,89480.0,89479.0,0.448916]
[1765773139767,0.006,89480.0,89479.0,0.448916]
[1765773140364,0.006,89480.0,89479.0,0.50906689]
[1765773143068,0.00016732,89488.0,89487.0,0.088115]
[1765773144183,0.07710732,89488.0,89487.0,0.088115]
[1765773144377,0.00016732,89488.0,89487.0,0.088115]
[1765773144972,0.03774732,89488.0,89487.0,0.088115]
[1765773145172,0.03874732,89488.0,89487.0,0.088115]
[1765773145582,0.00116732,89488.0,89487.0,0.088115]
[1765773145786,0.07810732,89488.0,89487.0,0.088115]
[1765773146380,0.00116732,89488.0,89487.0,0.088115]
[1765773146584,0.43774,89511.0,89510.0,0.0881121]
[1765773146881,0.46126933,89511.0,89510.0,0.0881121]
[1765773147582,0.46125881,89511.0,89510.0,0.0881121]
[1765773148087,0.10045881,89511.0,89510.0,0.0881121]
[1765773148276,0.3608,89520.0,89519.0,0.082051]
[1765773148476,0.38430895,89520.0,89519.0,0.082051]
[1765773149077,0.41823895,89520.0,89519.0,0.082051]
[1765773149583,0.38430895,89520.0,89519.0,0.082051]
[1765773149891,0.38429638,89520.0,89519.0,0.09344925]
[1765773150192,0.3608,89520.0,89519.0,0.09344925]
[1765773150377,0.06220426,89530.0,89529.0,0.07088]
[1765773150579,0.08568494,89530.0,89529.0,0.07088]
[1765773150980,0.06895,89522.0,89521.0,0.07227764]
[1765773151186,0.06895,89522.0,89521.0,0.00016764]
[1765773151682,0.06895,89522.0,89521.0,0.03677764]
[1765773152182,0.06895,89522.0,89521.0,0.00016764]
[1765773152385,0.09241155,89522.0,89521.0,0.00016764]
[1765773152684,0.09241155,89522.0,89521.0,0.00416764]
[1765773153088,0.09241155,89522.0,89521.0,0.00816764]
[1765773153387,0.09241155,89522.0,89521.0,0.00716764]
[1765773153590,0.09241155,89522.0,89521.0,0.00316764]
[1765773153885,0.09241155,89522.0,89521.0,0.00716764]
[1765773154381,0.09241155,89522.0,89521.0,0.07889764]
[1765773154583,0.02346155,89522.0,89521.0,0.07889764]
[1765773154788,0.05764155,89522.0,89521.0,0.07889764]
[1765773154989,0.03418,89522.0,89521.0,0.07889764]
[1765773156881,0.43,89532.0,89531.0,0.07273]
[1765773157087,0.45343943,89532.0,89531.0,0.07273]
[1765773158692,0.43,89532.0,89531.0,0.07273]
[1765773158881,0.45343026,89532.0,89531.0,0.07273]
[1765773159374,0.45343026,89532.0,89531.0,0.04061]
[1765773159778,0.45343026,89532.0,89531.0,0.07673]
[1765773159983,0.43,89532.0,89531.0,0.07673]
[1765773160177,0.43,89532.0,89531.0,0.08073]
[1765773161292,0.43,89532.0,89531.0,0.07673]
[1765773161488,0.43,89532.0,89531.0,0.08073]
[1765773162184,0.0692,89532.0,89531.0,0.08073]
[1765773162385,0.43,89532.0,89531.0,0.08073]
[1765773163982,0.45347411,89532.0,89531.0,0.08073]
[1765773164175,0.47398411,89532.0,89531.0,0.08073]
[1765773164580,0.47398411,89532.0,89531.0,0.07673]
[1765773164776,0.47398411,89532.0,89531.0,0.08073]
[1765773165989,0.45347411,89532.0,89531.0,0.07673]
[1765773166194,0.45347411,89532.0,89531.0,0.08073]
[1765773166693,0.47398411,89532.0,89531.0,0.08073]
[1765773167495,0.11318411,89532.0,89531.0,0.08073]
[1765773167884,0.09267411,89532.0,89531.0,0.08073]
[1765773168088,0.43,89540.0,89539.0,0.0838985]
[1765773168290,0.45348959,89540.0,89539.0,0.0838985]
[1765773168498,0.45051,89550.0,89549.0,0.0838972]